[Event "POR-ch Women Rapid 2019"]
[Site "Portimao"]
[Date "2019.09.07"]
[Round "2.5"]
[White "Duque, Raquel Dos Santos"]
[Black "Leite, Marta Sofia Carvalho"]
[Result "1-0"]
[ECO "A25"]
[WhiteElo "1415"]
[BlackElo "1722"]
[Annotator "NA"]
[PlyCount "41"]
[EventDate "2019.09.08"]
[EventType "swiss"]
[EventCountry "POR"]
[SourceTitle "playchess.com"]
[Source "ChessBase"]
[SourceQuality "1"]
[TimeControl "900+5"]

1. c4 {[%emt 0:00:00]} e5 2. Nc3 {[%emt 0:00:19]} Nc6 {[%emt 0:00:40]} 3. g3 {[%emt 0:00:04]} d6 {[%emt 0:00:16]} 4. Bg2 {[%emt 0:00:04]} Be6 {[%emt 0:00:59]} 5. b3 {[%emt 0:00:19]} g6 {[%emt 0:00:19]} 6. e3 {[%emt 0:00:03]} Bg7 {[%emt 0:00:02]} 7. Nge2 {[%emt 0:00:03]} Nge7 {[%emt 0:00:11]} 8. O-O {[%emt 0:00:03]} O-O {[%emt 0:00:03]} 9. Bb2 {[%emt 0:00:06]} Qd7 {[%emt 0:00:30]} 10. Re1 {[%emt 0:00:07]} Bh3 {[%emt 0:01:43]} 11. Bh1 {[%emt 0:00:05]} f5 {[%emt 0:00:32]} 12. d4 {[%emt 0:00:08]} f4 {[%emt 0:00:22]} 13. exf4 {[%emt 0:00:25]} exf4 {[%emt 0:01:03]} 14. Nxf4 {[%emt 0:00:44]} Bxd4 {[%emt 0:00:35]} 15. Qd2 {[%emt 0:02:45]} Qg4 {[%emt 0:04:27]} 16. Ncd5 {[%emt 0:04:13]} Bxb2 {[%emt 0:01:06]} 17. Nxe7+ {[%emt 0:00:03]} Nxe7 {[%emt 0:00:03]} 18. Qxb2 {[%emt 0:00:02]} Nc6 {[%emt 0:00:33]} 19. Bd5+ {[%emt 0:00:34]} Rf7 {[%emt 0:00:19]} 20. Qf6 {[%emt 0:00:17]} Raf8 {[%emt 0:00:44]} 21. Bxf7+ 1-0

[Event "POR-ch Women Rapid 2019"]
[Site "Portimao"]
[Date "2019.09.07"]
[Round "3.1"]
[White "Pipiras, Filipa Fortuna"]
[Black "Jorge, Rita Maria Osorio"]
[Result "1-0"]
[ECO "D35"]
[WhiteElo "1965"]
[BlackElo "1957"]
[Annotator "NA"]
[PlyCount "89"]
[EventDate "2019.09.08"]
[EventType "swiss"]
[EventCountry "POR"]
[SourceTitle "playchess.com"]
[Source "ChessBase"]
[SourceQuality "1"]
[TimeControl "900+5"]

1. d4 Nf6 {[%emt 0:00:06]} 2. c4 {[%emt 0:00:10]} e6 {[%emt 0:00:02]} 3. Nc3 {[%emt 0:00:04]} d5 {[%emt 0:00:01]} 4. cxd5 {[%emt 0:00:02]} exd5 {[%emt 0:00:02]} 5. Bg5 {[%emt 0:00:02]} Nbd7 {[%emt 0:00:13]} 6. e3 {[%emt 0:00:04]} Be7 {[%emt 0:00:02]} 7. Bd3 {[%emt 0:00:03]} O-O {[%emt 0:00:12]} 8. Nge2 {[%emt 0:00:03]} b6 {[%emt 0:01:37]} 9. O-O {[%emt 0:00:33]} Bb7 {[%emt 0:00:16]} 10. f3 {[%emt 0:00:51]} c5 {[%emt 0:00:15]} 11. Bh4 {[%emt 0:00:19]} a6 {[%emt 0:00:30]} 12. b3 {[%emt 0:00:54]} Qc7 {[%emt 0:01:51]} 13. a4 {[%emt 0:02:48]} Rae8 {[%emt 0:01:09]} 14. Bf2 {[%emt 0:00:32]} Bd6 {[%emt 0:00:31]} 15. h3 {[%emt 0:01:03]} Qb8 {[%emt 0:01:04]} 16. Rc1 {[%emt 0:00:57]} h6 {[%emt 0:02:41]} 17. Qd2 {[%emt 0:00:39]} Nh5 {[%emt 0:00:47]} 18. Qc2 {[%emt 0:01:55]} Ng3 {[%emt 0:00:51]} 19. Nxg3 {[%emt 0:00:11]} Bxg3 {[%emt 0:00:01]} 20. Bxg3 {[%emt 0:00:55]} Qxg3 {[%emt 0:00:04]} 21. Qf2 {[%emt 0:00:10]} Qxf2+ {[%emt 0:01:06]} 22. Kxf2 {[%emt 0:00:04]} cxd4 {[%emt 0:00:44]} 23. exd4 {[%emt 0:00:03]} Rc8 {[%emt 0:00:07]} 24. Rfe1 {[%emt 0:00:14]} Rc7 {[%emt 0:00:42]} 25. Nxd5 {[%emt 0:00:39]} Rxc1 {[%emt 0:00:21]} 26. Ne7+ {[%emt 0:00:01]} Kh8 {[%emt 0:00:01]} 27. Rxc1 {[%emt 0:00:02]} Re8 {[%emt 0:00:13]} 28. Nf5 {[%emt 0:00:10]} Bd5 {[%emt 0:00:19]} 29. Rc3 {[%emt 0:00:31]} Nb8 {[%emt 0:00:20]} 30. Nd6 {[%emt 0:00:15]} Rd8 {[%emt 0:00:01]} 31. Nc8 {[%emt 0:01:09]} Bb7 {[%emt 0:00:23]} 32. Nxb6 {[%emt 0:00:04]} Rxd4 {[%emt 0:00:02]} 33. Ke3 {[%emt 0:00:14]} Rd6 {[%emt 0:00:42]} 34. Nc4 {[%emt 0:00:12]} Re6+ {[%emt 0:00:03]} 35. Kf2 {[%emt 0:00:04]} Nd7 {[%emt 0:00:18]} 36. Ne3 {[%emt 0:00:10]} g6 {[%emt 0:00:07]} 37. Rc7 {[%emt 0:00:13]} Bc6 {[%emt 0:00:10]} 38. Bxa6 {[%emt 0:00:29]} Nc5 {[%emt 0:00:01]} 39. Bc4 {[%emt 0:00:03]} Rf6 {[%emt 0:00:07]} 40. Rxf7 {[%emt 0:00:17]} Ne4+ {[%emt 0:00:07]} 41. Kg1 {[%emt 0:00:05]} Rxf7 {[%emt 0:00:06]} 42. Bxf7 {[%emt 0:00:05]} Kg7 {[%emt 0:00:01]} 43. Bd5 {[%emt 0:00:40]} Bxd5 {[%emt 0:00:08]} 44. Nxd5 {[%emt 0:00:03]} Kf7 {[%emt 0:00:07]} 45. fxe4 {[%emt 0:00:03]} 1-0

[Event "POR-ch Women Rapid 2019"]
[Site "Portimao"]
[Date "2019.09.07"]
[Round "3.2"]
[White "Silva, Mariana Sofia T."]
[Black "Silva, Ana Ines Teixeira Da"]
[Result "0-1"]
[ECO "A05"]
[WhiteElo "1882"]
[BlackElo "1738"]
[Annotator "NA"]
[PlyCount "99"]
[EventDate "2019.09.08"]
[EventType "swiss"]
[EventCountry "POR"]
[SourceTitle "playchess.com"]
[Source "ChessBase"]
[SourceQuality "1"]
[TimeControl "900+5"]

1. Nf3 {[%emt 0:00:00]} Nf6 {[%emt 0:00:00]} 2. g3 {[%emt 0:00:08]} g6 {[%emt 0:00:01]} 3. b3 {[%emt 0:00:01]} Bg7 {[%emt 0:00:02]} 4. Bb2 {[%emt 0:00:01]} O-O {[%emt 0:00:06]} 5. Bg2 {[%emt 0:00:04]} c5 {[%emt 0:00:08]} 6. O-O {[%emt 0:00:26]} d5 {[%emt 0:00:04]} 7. d4 {[%emt 0:00:16]} cxd4 {[%emt 0:00:03]} 8. Nxd4 {[%emt 0:00:16]} e5 {[%emt 0:00:32]} 9. Nf3 {[%emt 0:00:13]} e4 {[%emt 0:00:58]} 10. Nd4 {[%emt 0:00:27]} Nc6 {[%emt 0:00:56]} 11. h3 {[%emt 0:01:32]} Re8 {[%emt 0:00:47]} 12. e3 {[%emt 0:00:30]} Ne5 {[%emt 0:00:37]} 13. Nd2 {[%emt 0:00:14]} Bd7 {[%emt 0:01:25]} 14. Rb1 {[%emt 0:00:20]} Qc8 {[%emt 0:00:19]} 15. Kh2 {[%emt 0:00:09]} h5 {[%emt 0:01:05]} 16. f4 {[%emt 0:02:19]} Neg4+ {[%emt 0:00:52]} 17. hxg4 {[%emt 0:00:22]} Nxg4+ {[%emt 0:00:02]} 18. Kg1 {[%emt 0:00:15]} Nxe3 {[%emt 0:00:03]} 19. Qe1 {[%emt 0:00:30]} Nxg2 {[%emt 0:01:17]} 20. Kxg2 {[%emt 0:00:02]} Bh3+ {[%emt 0:00:01]} 21. Kg1 {[%emt 0:00:31]} Bxf1 {[%emt 0:00:48]} 22. Nxf1 {[%emt 0:00:18]} Qc5 {[%emt 0:02:46]} 23. Qe3 {[%emt 0:00:27]} Rac8 {[%emt 0:00:23]} 24. Rc1 {[%emt 0:00:30]} b5 {[%emt 0:01:11]} 25. a3 {[%emt 0:01:12]} a5 {[%emt 0:00:14]} 26. Nd2 {[%emt 0:00:31]} a4 {[%emt 0:00:48]} 27. c4 {[%emt 0:01:15]} bxc4 {[%emt 0:00:59]} 28. bxc4 {[%emt 0:00:04]} Qb6 {[%emt 0:00:22]} 29. Bc3 {[%emt 0:00:34]} dxc4 {[%emt 0:00:07]} 30. Rb1 {[%emt 0:00:33]} Qc5 {[%emt 0:00:15]} 31. Rb4 {[%emt 0:00:13]} Rcd8 {[%emt 0:00:11]} 32. Rxc4 {[%emt 0:00:40]} Qxa3 {[%emt 0:00:02]} 33. Nb1 {[%emt 0:00:12]} Qd6 {[%emt 0:00:05]} 34. Rxa4 {[%emt 0:00:25]} Qb6 {[%emt 0:00:01]} 35. Na3 {[%emt 0:00:18]} Qc7 {[%emt 0:00:03]} 36. Nab5 {[%emt 0:00:12]} Qd7 {[%emt 0:00:06]} 37. Ra7 {[%emt 0:00:11]} Bxd4 {[%emt 0:00:06]} 38. Bxd4 {[%emt 0:00:17]} Qxb5 {[%emt 0:00:03]} 39. Qc3 {[%emt 0:01:06]} Qb1+ {[%emt 0:00:07]} 40. Kg2 {[%emt 0:00:03]} Qd3 {[%emt 0:00:04]} 41. Qc7 {[%emt 0:00:12]} Qb3 {[%emt 0:00:16]} 42. Bf2 {[%emt 0:00:20]} Rc8 {[%emt 0:00:05]} 43. Qd7 {[%emt 0:00:03]} Rcd8 {[%emt 0:00:04]} 44. Qc7 {[%emt 0:00:10]} Qf3+ {[%emt 0:00:06]} 45. Kh3 {[%emt 0:00:13]} Qg4+ {[%emt 0:00:07]} 46. Kg2 {[%emt 0:00:02]} Qf5 {[%emt 0:00:01]} 47. Be3 {[%emt 0:00:03]} Rc8 {[%emt 0:00:03]} 48. Qb7 {[%emt 0:00:02]} Rc2+ {[%emt 0:00:02]} 49. Kg1 {[%emt 0:00:11]} Rd8 {[%emt 0:00:10]} 50. Qb6 0-1

[Event "POR-ch Women Rapid 2019"]
[Site "Portimao"]
[Date "2019.09.07"]
[Round "3.4"]
[White "Goncalves, Ana Luisa"]
[Black "Duque, Raquel Dos Santos"]
[Result "0-1"]
[ECO "C50"]
[WhiteElo "1250"]
[BlackElo "1415"]
[Annotator "NA"]
[PlyCount "51"]
[EventDate "2019.09.08"]
[EventType "swiss"]
[EventCountry "POR"]
[SourceTitle "playchess.com"]
[Source "ChessBase"]
[SourceQuality "1"]
[TimeControl "900+5"]

1. e4 {[%emt 0:00:00]} e5 {[%emt 0:00:00]} 2. Bc4 {[%emt 0:00:00]} Bc5 {[%emt 0:00:00]} 3. Nf3 {[%emt 0:00:05]} Nc6 {[%emt 0:00:02]} 4. O-O {[%emt 0:00:18]} Nf6 {[%emt 0:00:02]} 5. h3 {[%emt 0:00:09]} O-O {[%emt 0:00:04]} 6. d3 {[%emt 0:00:02]} h6 {[%emt 0:00:02]} 7. Nc3 {[%emt 0:00:05]} d6 {[%emt 0:00:03]} 8. a3 {[%emt 0:00:06]} Be6 {[%emt 0:00:03]} 9. Bd5 {[%emt 0:02:05]} Bxd5 {[%emt 0:00:19]} 10. exd5 {[%emt 0:00:07]} Ne7 {[%emt 0:00:04]} 11. Na4 {[%emt 0:01:37]} Bb6 {[%emt 0:00:29]} 12. c4 {[%emt 0:00:13]} Nf5 {[%emt 0:00:45]} 13. Nxb6 {[%emt 0:01:03]} axb6 {[%emt 0:00:03]} 14. Re1 {[%emt 0:00:03]} c6 {[%emt 0:00:31]} 15. Qb3 {[%emt 0:02:33]} cxd5 {[%emt 0:01:52]} 16. cxd5 {[%emt 0:00:44]} Ne7 {[%emt 0:00:04]} 17. d4 {[%emt 0:03:15]} exd4 {[%emt 0:01:32]} 18. Nxd4 {[%emt 0:00:28]} Nexd5 {[%emt 0:00:10]} 19. Nf5 {[%emt 0:00:53]} Re8 {[%emt 0:00:47]} 20. Be3 {[%emt 0:00:35]} Nxe3 {[%emt 0:01:50]} 21. fxe3 {[%emt 0:00:45]} Re5 {[%emt 0:00:25]} 22. Ng3 {[%emt 0:01:06]} Rc8 {[%emt 0:00:49]} 23. Rad1 {[%emt 0:00:21]} Rc6 {[%emt 0:00:37]} 24. Qb4 {[%emt 0:00:02]} Qe7 {[%emt 0:00:17]} 25. e4 {[%emt 0:00:04]} Qe6 {[%emt 0:01:09]} 26. Nf5 0-1

[Event "POR-ch Women Rapid 2019"]
[Site "Portimao"]
[Date "2019.09.07"]
[Round "3.5"]
[White "Soares, Sara Joana De Moura "]
[Black "Leite, Marta Sofia Carvalho"]
[Result "1-0"]
[ECO "B01"]
[WhiteElo "1533"]
[BlackElo "1722"]
[Annotator "NA"]
[PlyCount "67"]
[EventDate "2019.09.08"]
[EventType "swiss"]
[EventCountry "POR"]
[SourceTitle "playchess.com"]
[Source "ChessBase"]
[SourceQuality "1"]
[TimeControl "900+5"]

1. e4 {[%emt 0:00:00]} d5 {[%emt 0:00:00]} 2. exd5 {[%emt 0:00:00]} Qxd5 {[%emt 0:00:00]} 3. Nc3 {[%emt 0:00:00]} Qa5 {[%emt 0:00:00]} 4. d4 {[%emt 0:00:06]} Nf6 {[%emt 0:00:01]} 5. Bd2 {[%emt 0:00:04]} Bg4 {[%emt 0:00:02]} 6. Nf3 {[%emt 0:00:29]} Nc6 {[%emt 0:00:07]} 7. Bc4 {[%emt 0:01:39]} e6 {[%emt 0:01:39]} 8. Nd5 {[%emt 0:01:12]} Bb4 {[%emt 0:00:56]} 9. Nxb4 {[%emt 0:00:14]} Nxb4 {[%emt 0:00:04]} 10. a3 {[%emt 0:00:02]} Bxf3 {[%emt 0:00:28]} 11. gxf3 {[%emt 0:00:15]} Nxc2+ {[%emt 0:00:15]} 12. Qxc2 {[%emt 0:00:05]} Qf5 {[%emt 0:00:03]} 13. Qxf5 {[%emt 0:00:12]} exf5 {[%emt 0:00:00]} 14. O-O-O {[%emt 0:00:28]} O-O {[%emt 0:00:20]} 15. Rhg1 {[%emt 0:00:05]} g6 {[%emt 0:00:03]} 16. h4 {[%emt 0:00:43]} Rad8 {[%emt 0:00:09]} 17. Bg5 {[%emt 0:00:26]} Rd6 {[%emt 0:00:02]} 18. Bxf6 {[%emt 0:00:21]} Rxf6 {[%emt 0:00:01]} 19. Kb1 {[%emt 0:00:23]} Rd6 {[%emt 0:00:38]} 20. h5 {[%emt 0:00:24]} Rfd8 {[%emt 0:00:11]} 21. hxg6 {[%emt 0:00:25]} hxg6 {[%emt 0:00:01]} 22. Bb3 {[%emt 0:00:12]} Rxd4 {[%emt 0:00:09]} 23. Rxd4 {[%emt 0:00:12]} Rxd4 {[%emt 0:00:01]} 24. Kc2 {[%emt 0:00:01]} Rf4 {[%emt 0:00:12]} 25. Rxg6+ {[%emt 0:00:04]} Kh7 {[%emt 0:00:02]} 26. Rg3 {[%emt 0:00:06]} Rd4 {[%emt 0:00:14]} 27. Bxf7 {[%emt 0:00:06]} Rd6 {[%emt 0:00:09]} 28. Rg5 {[%emt 0:00:48]} Rf6 {[%emt 0:00:33]} 29. Bd5 {[%emt 0:00:08]} c6 {[%emt 0:00:01]} 30. Bc4 {[%emt 0:00:03]} Rf8 {[%emt 0:00:26]} 31. Bd3 {[%emt 0:00:02]} Kh6 {[%emt 0:00:09]} 32. Rxf5 {[%emt 0:00:02]} Rg8 {[%emt 0:00:01]} 33. Rf7 {[%emt 0:00:19]} Rg2 {[%emt 0:00:02]} 34. Rh7+ {[%emt 0:00:01]} 1-0

[Event "POR-ch Women Rapid 2019"]
[Site "Portimao"]
[Date "2019.09.07"]
[Round "4.1"]
[White "Duque, Raquel Dos Santos"]
[Black "Pipiras, Filipa Fortuna"]
[Result "0-1"]
[ECO "A25"]
[WhiteElo "1415"]
[BlackElo "1965"]
[Annotator "NA"]
[PlyCount "70"]
[EventDate "2019.09.08"]
[EventType "swiss"]
[EventCountry "POR"]
[SourceTitle "playchess.com"]
[Source "ChessBase"]
[SourceQuality "1"]
[TimeControl "900+5"]

1. c4 {[%emt 0:00:00]} e5 {[%emt 0:00:10]} 2. Nc3 {[%emt 0:00:00]} Nc6 {[%emt 0:00:06]} 3. g3 {[%emt 0:00:02]} Nf6 {[%emt 0:00:07]} 4. Bg2 {[%emt 0:00:02]} Bc5 {[%emt 0:00:04]} 5. e3 {[%emt 0:00:02]} a6 {[%emt 0:00:06]} 6. Nge2 {[%emt 0:00:03]} Ba7 {[%emt 0:00:05]} 7. O-O {[%emt 0:00:03]} O-O {[%emt 0:00:05]} 8. d4 {[%emt 0:00:02]} exd4 {[%emt 0:00:10]} 9. Nxd4 {[%emt 0:00:03]} Ne5 {[%emt 0:00:24]} 10. b3 {[%emt 0:00:23]} d6 {[%emt 0:00:04]} 11. Bb2 {[%emt 0:00:02]} Bg4 {[%emt 0:00:12]} 12. Qc2 {[%emt 0:00:49]} Qc8 {[%emt 0:00:15]} 13. Ne4 {[%emt 0:00:44]} Nxe4 {[%emt 0:01:11]} 14. Qxe4 {[%emt 0:00:50]} Rb8 {[%emt 0:00:33]} 15. Nf3 {[%emt 0:00:55]} Bf5 {[%emt 0:00:21]} 16. Qd5 {[%emt 0:01:10]} Ng6 {[%emt 0:01:15]} 17. Rfe1 {[%emt 0:00:50]} Re8 {[%emt 0:01:15]} 18. e4 {[%emt 0:01:50]} Be6 {[%emt 0:00:22]} 19. Qd3 {[%emt 0:00:13]} f6 {[%emt 0:00:46]} 20. Nd4 {[%emt 0:00:35]} Bd7 {[%emt 0:00:47]} 21. Nf3 {[%emt 0:02:50]} b5 {[%emt 0:00:40]} 22. Bd4 {[%emt 0:00:13]} c5 {[%emt 0:01:00]} 23. Bb2 {[%emt 0:00:25]} bxc4 {[%emt 0:00:27]} 24. Qxc4+ {[%emt 0:00:03]} Be6 {[%emt 0:00:01]} 25. Qd3 {[%emt 0:00:08]} c4 {[%emt 0:00:34]} 26. Qxd6 {[%emt 0:01:14]} Rd8 {[%emt 0:00:19]} 27. Qa3 {[%emt 0:00:02]} Bc5 {[%emt 0:00:05]} 28. Qa4 {[%emt 0:00:04]} Bb4 {[%emt 0:00:56]} 29. Rec1 {[%emt 0:01:50]} Bd7 {[%emt 0:02:12]} 30. Rxc4 {[%emt 0:00:03]} Bxa4 {[%emt 0:00:08]} 31. Rxc8 {[%emt 0:00:02]} Rdxc8 {[%emt 0:00:13]} 32. bxa4 {[%emt 0:00:03]} Rc2 {[%emt 0:00:14]} 33. Bd4 {[%emt 0:00:03]} Bc3 {[%emt 0:00:34]} 34. Bxc3 {[%emt 0:00:22]} Rxc3 {[%emt 0:00:01]} 35. Bf1 {[%emt 0:00:02]} Rxf3 {[%emt 0:00:05]} 0-1

[Event "POR-ch Women Rapid 2019"]
[Site "Portimao"]
[Date "2019.09.07"]
[Round "4.2"]
[White "Jorge, Rita Maria Osorio"]
[Black "Silva, Mariana Sofia T."]
[Result "0-1"]
[ECO "B17"]
[WhiteElo "1957"]
[BlackElo "1882"]
[Annotator "NA"]
[PlyCount "116"]
[EventDate "2019.09.08"]
[EventType "swiss"]
[EventCountry "POR"]
[SourceTitle "playchess.com"]
[Source "ChessBase"]
[SourceQuality "1"]
[TimeControl "900+5"]

1. e4 {[%emt 0:00:00]} c6 {[%emt 0:00:00]} 2. d4 {[%emt 0:00:05]} d5 {[%emt 0:00:00]} 3. Nd2 {[%emt 0:00:02]} dxe4 {[%emt 0:00:01]} 4. Nxe4 {[%emt 0:00:02]} Nd7 {[%emt 0:00:02]} 5. Nf3 {[%emt 0:00:16]} Ngf6 {[%emt 0:00:01]} 6. Bd3 {[%emt 0:00:07]} Nxe4 {[%emt 0:00:06]} 7. Bxe4 {[%emt 0:00:02]} Nf6 {[%emt 0:00:02]} 8. Bd3 {[%emt 0:00:31]} Bg4 {[%emt 0:00:25]} 9. c3 {[%emt 0:00:11]} e6 {[%emt 0:00:12]} 10. h3 {[%emt 0:00:09]} Bh5 {[%emt 0:00:08]} 11. Bf4 {[%emt 0:02:11]} Bd6 {[%emt 0:00:14]} 12. Bxd6 {[%emt 0:00:42]} Qxd6 {[%emt 0:00:02]} 13. Qe2 {[%emt 0:00:37]} Nd5 {[%emt 0:00:43]} 14. g3 {[%emt 0:02:51]} O-O-O {[%emt 0:01:26]} 15. O-O-O {[%emt 0:00:56]} Kb8 {[%emt 0:00:10]} 16. Kb1 {[%emt 0:00:35]} Nf6 {[%emt 0:01:52]} 17. g4 {[%emt 0:00:17]} Bg6 {[%emt 0:00:02]} 18. Qe5 {[%emt 0:00:21]} Bxd3+ {[%emt 0:02:45]} 19. Rxd3 {[%emt 0:00:53]} c5 {[%emt 0:02:51]} 20. dxc5 {[%emt 0:01:13]} Qxe5 {[%emt 0:00:15]} 21. Nxe5 {[%emt 0:00:04]} Rxd3 {[%emt 0:00:09]} 22. Nxd3 {[%emt 0:00:02]} Rd8 {[%emt 0:00:22]} 23. Kc2 {[%emt 0:00:03]} Rd5 {[%emt 0:00:33]} 24. Re1 {[%emt 0:00:21]} Kc7 {[%emt 0:00:31]} 25. b4 {[%emt 0:00:24]} Nd7 {[%emt 0:00:19]} 26. c4 {[%emt 0:01:37]} Rg5 {[%emt 0:00:29]} 27. f4 {[%emt 0:00:30]} Rg6 {[%emt 0:00:01]} 28. Ne5 {[%emt 0:00:31]} Nxe5 {[%emt 0:00:02]} 29. Rxe5 {[%emt 0:00:02]} Rf6 {[%emt 0:00:36]} 30. Re4 {[%emt 0:00:06]} Rh6 {[%emt 0:00:23]} 31. Re3 {[%emt 0:00:04]} Rh4 {[%emt 0:00:35]} 32. Rf3 {[%emt 0:00:23]} h5 {[%emt 0:00:21]} 33. g5 {[%emt 0:00:14]} f6 {[%emt 0:00:24]} 34. Kd3 {[%emt 0:00:51]} Kc6 {[%emt 0:00:22]} 35. a3 e5 {[%emt 0:00:17]} 36. fxe5 {[%emt 0:00:27]} fxe5 {[%emt 0:00:02]} 37. Rf7 {[%emt 0:00:05]} Rxh3+ {[%emt 0:00:03]} 38. Ke4 {[%emt 0:00:02]} Rh4+ {[%emt 0:00:35]} 39. Kxe5 {[%emt 0:00:05]} Rxc4 {[%emt 0:00:04]} 40. Rxg7 {[%emt 0:00:03]} h4 {[%emt 0:00:10]} 41. Rh7 {[%emt 0:00:10]} Rg4 {[%emt 0:00:04]} 42. Kf6 {[%emt 0:00:04]} Rf4+ {[%emt 0:00:14]} 43. Kg7 {[%emt 0:00:07]} Kd7 {[%emt 0:00:12]} 44. g6 {[%emt 0:00:15]} Rg4 {[%emt 0:00:10]} 45. Rh6 {[%emt 0:00:03]} Ke6 {[%emt 0:00:07]} 46. Kf8 {[%emt 0:00:07]} Rf4+ {[%emt 0:00:03]} 47. Ke8 {[%emt 0:00:05]} Kf6 {[%emt 0:00:12]} 48. Kf8 {[%emt 0:00:08]} Kg5+ {[%emt 0:00:03]} 49. Kg7 {[%emt 0:00:01]} Rd4 {[%emt 0:00:09]} 50. Rh8 {[%emt 0:00:06]} Rd7+ {[%emt 0:00:02]} 51. Kf8 {[%emt 0:00:02]} Rd8+ {[%emt 0:00:04]} 52. Kg7 {[%emt 0:00:03]} Rxh8 {[%emt 0:00:05]} 53. Kxh8 {[%emt 0:00:09]} Kxg6 {[%emt 0:00:01]} 54. b5 {[%emt 0:00:03]} h3 {[%emt 0:00:02]} 55. c6 {[%emt 0:00:01]} bxc6 {[%emt 0:00:06]} 56. bxc6 {[%emt 0:00:01]} h2 {[%emt 0:00:01]} 57. c7 {[%emt 0:00:02]} h1=Q+ {[%emt 0:00:03]} 58. Kg8 {[%emt 0:00:01]} Qa8+ 0-1

[Event "POR-ch Women Rapid 2019"]
[Site "Portimao"]
[Date "2019.09.07"]
[Round "4.3"]
[White "Silva, Ana Ines Teixeira Da"]
[Black "Monteiro, Sara Cristina da Sil"]
[Result "1-0"]
[ECO "B01"]
[WhiteElo "1738"]
[BlackElo "1728"]
[Annotator "NA"]
[PlyCount "87"]
[EventDate "2019.09.08"]
[EventType "swiss"]
[EventCountry "POR"]
[SourceTitle "playchess.com"]
[Source "ChessBase"]
[SourceQuality "1"]
[TimeControl "900+5"]

1. e4 {[%emt 0:00:00]} d5 {[%emt 0:00:00]} 2. exd5 {[%emt 0:00:00]} Qxd5 {[%emt 0:00:00]} 3. Nc3 {[%emt 0:00:00]} Qa5 {[%emt 0:00:00]} 4. d4 {[%emt 0:00:02]} e5 {[%emt 0:00:15]} 5. Qe2 {[%emt 0:01:55]} Bb4 {[%emt 0:04:44]} 6. Qxe5+ {[%emt 0:00:54]} Qxe5+ {[%emt 0:00:08]} 7. dxe5 {[%emt 0:00:02]} Bxc3+ {[%emt 0:00:04]} 8. bxc3 {[%emt 0:00:02]} Bf5 {[%emt 0:00:05]} 9. Bd3 {[%emt 0:00:12]} Ne7 {[%emt 0:00:06]} 10. Ba3 {[%emt 0:00:30]} Nbc6 {[%emt 0:00:06]} 11. Bxe7 {[%emt 0:00:55]} Nxe7 {[%emt 0:00:06]} 12. Rb1 {[%emt 0:00:56]} O-O-O {[%emt 0:00:19]} 13. Bxf5+ {[%emt 0:01:42]} Nxf5 {[%emt 0:00:03]} 14. Nf3 {[%emt 0:00:03]} Rhe8 {[%emt 0:01:19]} 15. O-O {[%emt 0:00:14]} h6 {[%emt 0:00:05]} 16. Rb4 {[%emt 0:01:54]} Ne7 {[%emt 0:02:54]} 17. Rf4 {[%emt 0:01:04]} Rf8 {[%emt 0:00:52]} 18. Rg4 {[%emt 0:01:36]} g6 {[%emt 0:00:22]} 19. Nd4 {[%emt 0:00:11]} Nd5 {[%emt 0:02:08]} 20. e6 {[%emt 0:01:36]} h5 {[%emt 0:00:29]} 21. Rg3 {[%emt 0:00:49]} Rd6 {[%emt 0:01:39]} 22. exf7 {[%emt 0:01:03]} Nxc3 {[%emt 0:00:09]} 23. Rxc3 {[%emt 0:00:48]} Rxd4 {[%emt 0:00:02]} 24. Rf3 {[%emt 0:00:12]} Rd7 {[%emt 0:00:41]} 25. Rf6 {[%emt 0:00:02]} Rfxf7 {[%emt 0:00:07]} 26. Rxg6 {[%emt 0:00:01]} Rd2 {[%emt 0:00:05]} 27. f4 {[%emt 0:00:18]} Rxc2 {[%emt 0:00:06]} 28. f5 {[%emt 0:00:06]} Rxa2 {[%emt 0:00:08]} 29. f6 {[%emt 0:00:02]} Ra6 {[%emt 0:00:07]} 30. Rf5 {[%emt 0:00:12]} h4 {[%emt 0:00:09]} 31. Kf2 {[%emt 0:00:02]} c6 {[%emt 0:00:10]} 32. Kf3 {[%emt 0:00:01]} Ra4 {[%emt 0:00:02]} 33. Rg7 {[%emt 0:00:01]} Rf8 {[%emt 0:00:03]} 34. f7 {[%emt 0:00:02]} Kd7 {[%emt 0:00:03]} 35. Rg8 {[%emt 0:00:01]} Ke7 {[%emt 0:00:01]} 36. Rxf8 {[%emt 0:00:14]} Kxf8 {[%emt 0:00:01]} 37. g3 {[%emt 0:00:03]} hxg3 {[%emt 0:00:02]} 38. hxg3 {[%emt 0:00:01]} b5 {[%emt 0:00:05]} 39. g4 {[%emt 0:00:02]} Rc4 {[%emt 0:00:06]} 40. g5 {[%emt 0:00:02]} a5 {[%emt 0:00:08]} 41. g6 {[%emt 0:00:02]} Rc3+ {[%emt 0:00:13]} 42. Kg4 {[%emt 0:00:02]} Rc4+ {[%emt 0:00:06]} 43. Kg5 {[%emt 0:00:01]} Rd4 {[%emt 0:00:11]} 44. g7+ {[%emt 0:00:01]} 1-0

[Event "POR-ch Women Rapid 2019"]
[Site "Portimao"]
[Date "2019.09.07"]
[Round "4.4"]
[White "Goncalves, Ana Luisa"]
[Black "Soares, Sara Joana De Moura "]
[Result "0-1"]
[ECO "C26"]
[WhiteElo "1250"]
[BlackElo "1533"]
[Annotator "NA"]
[PlyCount "59"]
[EventDate "2019.09.08"]
[EventType "swiss"]
[EventCountry "POR"]
[SourceTitle "playchess.com"]
[Source "ChessBase"]
[SourceQuality "1"]
[TimeControl "900+5"]

1. e4 {[%emt 0:00:00]} e5 {[%emt 0:00:00]} 2. Bc4 {[%emt 0:00:00]} Nf6 {[%emt 0:00:05]} 3. Nc3 {[%emt 0:00:04]} Bc5 {[%emt 0:00:13]} 4. h3 {[%emt 0:00:04]} d6 {[%emt 0:00:18]} 5. Nf3 {[%emt 0:00:05]} Nbd7 {[%emt 0:00:16]} 6. O-O {[%emt 0:00:54]} c6 {[%emt 0:00:01]} 7. d3 {[%emt 0:01:17]} a5 {[%emt 0:00:03]} 8. a4 {[%emt 0:00:38]} O-O {[%emt 0:00:31]} 9. Bg5 {[%emt 0:00:21]} Re8 {[%emt 0:00:17]} 10. Ne2 {[%emt 0:01:29]} h6 {[%emt 0:01:16]} 11. Bh4 {[%emt 0:00:15]} Nf8 {[%emt 0:00:16]} 12. Nh2 {[%emt 0:00:52]} Ng6 {[%emt 0:00:24]} 13. Bg3 {[%emt 0:00:58]} Nh5 {[%emt 0:00:45]} 14. Nc3 {[%emt 0:01:03]} Nxg3 {[%emt 0:00:05]} 15. Ng4 {[%emt 0:00:52]} Nxf1 {[%emt 0:00:30]} 16. Kxf1 {[%emt 0:00:14]} Bxg4 {[%emt 0:00:32]} 17. Qxg4 {[%emt 0:00:24]} Qf6 {[%emt 0:00:02]} 18. Qg3 {[%emt 0:01:28]} Qf4 {[%emt 0:00:10]} 19. Ne2 {[%emt 0:00:46]} Qxg3 {[%emt 0:00:24]} 20. Nxg3 {[%emt 0:00:05]} Rad8 {[%emt 0:00:12]} 21. c3 {[%emt 0:00:35]} Nf4 {[%emt 0:00:11]} 22. Rb1 {[%emt 0:00:40]} d5 {[%emt 0:00:09]} 23. exd5 {[%emt 0:00:30]} Nxd5 {[%emt 0:00:09]} 24. b4 {[%emt 0:00:29]} Nxc3 {[%emt 0:00:17]} 25. Rb2 {[%emt 0:00:28]} Bxb4 {[%emt 0:00:14]} 26. Kg1 {[%emt 0:01:52]} b5 {[%emt 0:00:11]} 27. axb5 {[%emt 0:00:20]} cxb5 {[%emt 0:00:02]} 28. Bxb5 {[%emt 0:00:09]} Nxb5 {[%emt 0:00:04]} 29. Rb3 {[%emt 0:00:23]} Nd4 {[%emt 0:00:50]} 30. Rb1 0-1